bitfinex/quotes_SOLUSD_20251125
["timestamp","ask_amount","ask_price","bid_price","bid_amount"]
[1764048298583,14.33507727,138.52,138.51,0.1]
[1764048300502,16.308864,138.47,138.42,0.1]
[1764048300679,19.82030643,138.43,138.42,0.1]
[1764048300878,23.00030643,138.43,138.42,0.1]
[1764048301095,26.6064437,138.43,138.42,0.1]
[1764048301701,25.8964437,138.43,138.42,0.79]
[1764048301880,19.82030643,138.43,138.42,0.79]
[1764048302297,23.71030643,138.43,138.42,0.1]
[1764048302596,14.62531008,138.43,138.42,0.1]
[1764048306300,30.93417408,138.43,138.42,0.1]
[1764048306488,14.62531008,138.43,138.42,0.1]
[1764048307290,13.91531008,138.43,138.42,0.1]
[1764048307908,3.51144243,138.43,138.42,0.79]
[1764048308308,6.4075797,138.43,138.42,0.79]
[1764048311095,6.4075797,138.43,138.42,0.1]
[1764048312920,14.34144735,138.43,138.42,0.1]
[1764048313625,23.15139227,138.43,138.41,1e-08]
[1764048313906,16.308864,138.39,138.38,0.1]
[1764048314104,23.00030643,138.39,138.38,0.1]
[1764048314801,26.60728271,138.39,138.38,0.1]
[1764048315008,33.83323834,138.39,138.38,0.1]
[1764048315194,33.12323834,138.39,138.38,0.1]
[1764048317203,22.38584028,138.39,138.38,0.79]
[1764048317409,25.89728271,138.39,138.38,0.79]
[1764048317824,33.12323834,138.39,138.38,0.1]
[1764048318315,33.83323834,138.39,138.38,0.1]
[1764048320293,33.12323834,138.39,138.38,0.1]
[1764048321628,29.94323834,138.39,138.38,0.1]
[1764048322910,3.51144243,138.39,138.38,0.79]
[1764048323307,3.51144243,138.4,138.38,0.79]
[1764048323506,16.308864,138.39,138.38,0.79]
[1764048324708,16.308864,138.39,138.38,8.01647781]
[1764048325410,16.308864,138.39,138.38,0.79]
[1764048325600,19.82030643,138.39,138.38,0.79]
[1764048329697,16.308864,138.39,138.38,8.01647781]
[1764048331494,19.82030643,138.39,138.38,0.79]
[1764048331900,16.308864,138.39,138.38,0.79]
[1764048336837,16.308864,138.39,138.38,8.01647781]
[1764048337533,19.21910778,138.39,138.38,7.32647781]
[1764048337740,19.21910778,138.39,138.38,0.1]
[1764048337919,18.55910778,138.39,138.38,0.1]
[1764048338329,18.55910778,138.39,138.38,0.76]
[1764048338823,18.55910778,138.39,138.38,7.98647781]
[1764048339025,16.308864,138.39,138.38,7.98647781]
[1764048341240,18.55910778,138.39,138.38,0.76]
[1764048342630,19.21910778,138.39,138.38,0.1]
[1764048343811,18.55910778,138.39,138.38,0.76]
[1764048344913,16.308864,138.39,138.38,0.76]
[1764048345411,18.55910778,138.39,138.38,0.1]
[1764048345724,19.21910778,138.39,138.38,0.1]
[1764048346441,26.44506341,138.39,138.38,0.1]
[1764048353143,25.78456451,138.4,138.38,0.82]
[1764048353319,12.65570051,138.4,138.38,0.82]
[1764048353819,2.25024378,138.39,138.38,0.1]
[1764048354434,18.55910778,138.39,138.38,0.1]
[1764048355129,18.55910778,138.39,138.38,0.82]
[1764048355638,18.55910778,138.39,138.38,0.1]
[1764048357044,19.27910778,138.39,138.38,0.1]
[1764048358634,18.55910778,138.39,138.38,0.1]
[1764048359039,19.27910778,138.39,138.38,0.1]
[1764048359241,26.50506341,138.39,138.38,0.1]
[1764048359639,25.78506341,138.39,138.38,0.1]
[1764048361363,26.50506341,138.39,138.38,0.1]
[1764048361665,19.27910778,138.39,138.38,0.1]
[1764048362359,18.55910778,138.39,138.38,0.8]
[1764048362866,26.50506341,138.39,138.38,0.1]
[1764048364936,2.25024378,138.39,138.38,0.1]
[1764048365629,2.25024378,138.39,138.38,0.8]
[1764048365828,16.308864,138.39,138.38,0.8]
[1764048366448,2.25024378,138.42,138.38,3.98]
[1764048366649,18.55910778,138.41,138.38,3.98]
[1764048366855,18.55910778,138.41,138.39,0.7]
[1764048367047,18.55910778,138.41,138.39,7.92582165]
[1764048367650,18.55910778,138.41,138.39,0.7]
[1764048367854,2.25024378,138.4,138.38,11.20627858]
[1764048368153,2.25024378,138.44,138.39,0.98432314]
[1764048368340,16.308864,138.43,138.39,0.98432314]
[1764048368522,16.308864,138.43,138.4,0.7]
[1764048368933,16.308864,138.43,138.41,7.22491149]
[1764048369360,16.308864,138.43,138.42,0.7]
[1764048373651,16.308864,138.43,138.42,7.92438953]
[1764048374760,2.97024378,138.43,138.41,3.18]
[1764048375058,2.25024378,138.42,138.41,3.88]
[1764048376053,2.97024378,138.42,138.41,3.18]
[1764048376239,2.97024378,138.42,138.39,7.22586903]
[1764048376429,2.25024378,138.4,138.39,7.22586903]
[1764048376637,2.25024378,138.4,138.39,7.92586903]
[1764048376831,2.25024378,138.4,138.38,3.28]
[1764048377036,2.25024378,138.39,138.38,4.26432314]
[1764048377343,2.25024378,138.39,138.38,11.20647781]
[1764048378243,2.97024378,138.39,138.38,3.28]
[1764048378439,21.52935156,138.39,138.38,0.1]
[1764048378638,5.22048756,138.39,138.38,0.1]
[1764048378874,28.75530719,138.39,138.38,0.1]
[1764048379174,26.50506341,138.39,138.38,0.1]
[1764048379741,18.55910778,138.39,138.38,0.1]
[1764048379944,18.55910778,138.39,138.38,0.8]
[1764048381285,19.27910778,138.39,138.38,0.1]
[1764048381581,28.75530719,138.39,138.38,0.1]
[1764048382182,19.19717453,138.39,138.37,0.1]
[1764048382353,22.45910778,138.38,138.37,0.1]
[1764048383479,29.68558559,138.38,138.37,0.1]
[1764048383867,47.75178012,138.38,138.35,0.1]
[1764048384083,2.25024378,138.36,138.35,0.1]
[1764048384458,2.97024378,138.36,138.35,0.1]
[1764048384767,5.86805955,138.36,138.35,0.1]
[1764048385477,13.09558195,138.36,138.35,0.1]
[1764048386152,10.19776618,138.36,138.35,0.1]
[1764048388166,19.0077111,138.36,138.35,0.1]
[1764048388374,11.0601887,138.35,138.34,0.1]
[1764048388581,11.7801887,138.35,138.34,0.1]
[1764048389178,19.00823351,138.35,138.34,0.1]
[1764048389366,21.9064692,138.35,138.34,0.1]
[1764048390568,10.19828859,138.35,138.34,0.1]
[1764048392767,13.37828859,138.35,138.34,0.1]
[1764048394566,14.64781884,138.35,138.34,0.1]
[1764048395759,11.46781884,138.35,138.34,0.1]
[1764048395962,10.74781884,138.35,138.34,0.1]
[1764048396187,11.46781884,138.35,138.34,0.1]
[1764048396571,14.36584455,138.35,138.34,0.1]
[1764048401395,13.64584455,138.35,138.34,0.1]
[1764048401783,14.36584455,138.35,138.34,0.1]
[1764048402166,14.36584455,138.35,138.32,0.1]
[1764048402167,16.308864,138.33,138.32,0.1]
[1764048402362,10.21954806,138.33,138.32,0.1]
[1764048402566,10.93954806,138.33,138.32,0.1]
[1764048403171,18.16863791,138.33,138.32,0.1]
[1764048403385,21.06708361,138.33,138.32,0.1]
[1764048403702,37.37594761,138.33,138.32,0.1]
[1764048404003,17.54730958,138.33,138.32,0.1]
[1764048406199,37.37594761,138.33,138.32,0.1]
[1764048406388,21.06708361,138.33,138.32,0.1]
[1764048408878,17.54730958,138.33,138.32,0.1]
[1764048409601,21.06708361,138.33,138.32,0.1]
[1764048409798,17.54730958,138.33,138.32,0.1]
[1764048410702,21.06708361,138.33,138.32,0.1]
[1764048410904,16.82730958,138.33,138.32,0.1]
[1764048411288,17.54730958,138.33,138.32,0.1]
[1764048412805,21.06708361,138.33,138.32,0.1]
[1764048413909,37.37594761,138.33,138.32,0.1]
[1764048414117,8.80994492,138.32,138.31,0.1]
[1764048414402,3.51977403,138.28,138.27,0.1]
[1764048414606,6.69977403,138.28,138.27,0.1]
[1764048414915,7.36977403,138.28,138.27,0.1]
[1764048415086,6.69977403,138.28,138.27,0.8]
[1764048415280,9.59906008,138.28,138.27,0.1]
[1764048415483,19.82863803,138.28,138.27,0.8]
[1764048417290,16.308864,138.28,138.27,8.0322268]
[1764048417498,3.51977403,138.29,138.27,8.0322268]
[1764048417810,3.51977403,138.29,138.28,0.7]
[1764048418193,19.82863803,138.29,138.28,0.7]
[1764048421228,16.308864,138.29,138.28,7.93170378]
[1764048421414,16.308864,138.31,138.28,26.01096325]
[1764048421712,16.308864,138.31,138.29,0.7]
[1764048422117,19.82863803,138.31,138.29,0.7]
[1764048422320,19.82863803,138.31,138.27,0.1]
[1764048422493,3.51977403,138.28,138.27,0.8]
[1764048422995,11.42147781,138.28,138.27,0.1]
[1764048423893,14.32076386,138.28,138.27,0.1]
[1764048424908,13.65076386,138.28,138.27,0.1]
[1764048425224,14.32076386,138.28,138.27,0.1]
[1764048427220,14.32076386,138.28,138.24,0.1]
[1764048427221,16.308864,138.25,138.24,0.1]
[1764048427398,16.308864,138.25,138.2,0.1]
[1764048427399,0.28432314,138.24,138.2,0.1]
[1764048427601,19.82863803,138.21,138.2,0.1]
[1764048427913,6.71977403,138.21,138.2,0.1]
[1764048428095,14.62815156,138.21,138.2,0.1]
[1764048428296,16.308864,138.19,138.18,0.1]
[1764048428512,26.54841206,138.19,138.18,0.1]
[1764048428716,27.21841206,138.19,138.18,0.1]
[1764048428915,23.69863803,138.19,138.18,0.1]
[1764048429224,34.45482569,138.19,138.18,0.1]
[1764048429587,34.45482569,138.19,138.09,10.18142779]
[1764048429588,61.35580469,138.19,138.09,2.94]
[1764048429916,3.51977403,138.13,138.12,0.7]
[1764048430125,3.51977403,138.13,138.1,0.7]
[1764048430322,3.51977403,138.12,138.1,0.7]
[1764048431126,19.508864,138.15,138.1,7.9410788]
[1764048431417,3.51977403,138.12,138.1,0.7]
[1764048431606,3.51977403,138.12,138.11,0.7]
[1764048434406,16.308864,138.14,138.11,0.7]
[1764048434940,3.51977403,138.13,138.11,0.7]
[1764048435222,3.51977403,138.13,138.11,7.94050716]
[1764048435419,3.51977403,138.12,138.11,7.94050716]
[1764048436224,16.308864,138.12,138.11,7.94050716]
[1764048436718,16.308864,138.15,138.11,7.94050716]
[1764048436924,16.308864,138.13,138.12,0.7]
[1764048437423,16.308864,138.13,138.12,7.94008108]
[1764048437626,19.82863803,138.13,138.12,0.7]
[1764048438200,19.82863803,138.13,138.12,7.94008108]
[1764048438395,19.82863803,138.15,138.12,7.94008108]
[1764048438700,16.308864,138.14,138.13,0.7]
[1764048439010,19.82863803,138.14,138.13,0.7]
[1764048439708,16.308864,138.14,138.13,7.93955693]
[1764048440109,16.308864,138.14,138.13,0.7]
[1764048440421,19.82863803,138.14,138.13,0.7]
[1764048443029,16.308864,138.14,138.13,0.7]
[1764048443327,16.308864,138.14,138.13,7.93955693]
[1764048444212,3.51977403,138.17,138.13,7.93955693]
[1764048444416,3.51977403,138.17,138.14,0.67]
[1764048444601,19.82863803,138.16,138.14,0.67]
[1764048445523,16.308864,138.16,138.14,0.67]
[1764048445833,19.82863803,138.16,138.15,7.23850886]
[1764048446138,16.308864,138.16,138.15,7.23850886]
[1764048446430,16.308864,138.16,138.15,7.90850886]
[1764048448341,19.82863803,138.16,138.13,10.43906116]
[1764048448542,3.51977403,138.15,138.13,11.10906116]
[1764048448702,3.51977403,138.15,138.13,10.43906116]
[1764048449020,3.51977403,138.15,138.14,0.67]
[1764048449342,19.82863803,138.16,138.14,0.67]
[1764048450036,19.82863803,138.16,138.14,7.90851412]
[1764048450514,19.82863803,138.16,138.15,0.67]
[1764048452631,20.48863803,138.16,138.13,10.43933156]
[1764048452830,3.51977403,138.15,138.13,3.87]
[1764048453040,3.51977403,138.15,138.13,11.10947841]
[1764048453329,19.82863803,138.15,138.14,0.67]
[1764048455538,3.51977403,138.15,138.13,3.2]
[1764048455730,3.51977403,138.14,138.12,7.23986886]
[1764048455934,16.308864,138.14,138.13,0.67]
[1764048456441,19.82863803,138.15,138.13,0.67]
[1764048456643,18.5671922,138.15,138.13,0.67]
[1764048456834,16.308864,138.14,138.13,0.67]
[1764048457442,18.5671922,138.15,138.13,7.90955693]
[1764048457642,16.308864,138.15,138.13,7.90955693]
[1764048457949,18.5671922,138.15,138.14,0.67]
[1764048458641,16.308864,138.15,138.14,0.67]
[1764048458844,16.308864,138.15,138.14,7.90903286]
[1764048460558,16.308864,138.16,138.14,7.90903286]
[1764048460726,16.308864,138.16,138.15,0.67]
[1764048461152,16.308864,138.16,138.15,7.90850886]
[1764048461720,2.2583282,138.18,138.13,11.10940652]
[1764048461721,2.9183282,138.17,138.13,11.10940652]
[1764048461952,2.2583282,138.16,138.13,7.90940652]
[1764048462132,2.9183282,138.16,138.13,7.90940652]
[1764048462938,6.1183282,138.17,138.14,0.67]
[1764048464161,13.35583292,138.17,138.14,0.67]
[1764048464458,0.66,138.16,138.13,7.90940652]
[1764048464964,2.9183282,138.16,138.13,7.90940652]
[1764048465145,2.2583282,138.16,138.13,7.23940652]
[1764048465464,2.2583282,138.16,138.13,7.90940652]
[1764048465636,2.2583282,138.16,138.14,0.67]
[1764048465831,2.2583282,138.16,138.13,7.23940652]
[1764048466037,2.9183282,138.16,138.13,7.90940652]
[1764048468053,7.23801705,138.16,138.12,7.23995683]
[1764048468230,19.508864,138.17,138.11,10.44039107]
[1764048468231,10.15686113,138.15,138.11,10.44039107]
[1764048468433,2.2583282,138.14,138.11,7.91039107]
[1764048468636,2.9183282,138.14,138.11,7.91039107]
[1764048469155,0.66,138.14,138.11,7.91039107]
[1764048469367,2.9183282,138.14,138.11,0.67]
[1764048470156,2.9183282,138.14,138.11,7.91046961]
[1764048470657,2.2583282,138.12,138.11,0.67]
[1764048470865,2.2583282,138.12,138.1,7.24093438]
[1764048471033,2.2583282,138.11,138.1,7.24093438]
[1764048471233,2.2583282,138.11,138.1,7.91093438]
[1764048471435,0.66,138.13,138.1,7.91093438]
[1764048471436,2.2583282,138.12,138.1,7.91093438]
[1764048472056,2.2583282,138.11,138.09,10.44142679]
[1764048472364,2.2583282,138.1,138.08,7.24207695]
[1764048472862,2.2583282,138.11,138.09,0.69]
[1764048474263,2.2583282,138.11,138.09,7.9315269]
[1764048480265,16.308864,138.12,138.1,7.92112961]
[1764048480448,18.5671922,138.12,138.1,7.24112961]
[1764048480650,2.2583282,138.11,138.09,11.12146138]
[1764048480955,2.2583282,138.11,138.1,0.68]
[1764048482870,2.2583282,138.11,138.1,7.92112961]
[1764048483044,2.9283282,138.11,138.09,7.24143836]
[1764048483250,2.2583282,138.1,138.09,7.24143836]
[1764048484773,2.2583282,138.1,138.09,0.68]
[1764048485646,2.9283282,138.1,138.08,7.24217844]
[1764048485852,2.2583282,138.1,138.08,7.24217844]
[1764048486053,2.2583282,138.1,138.08,7.92217844]
[1764048486260,18.5671922,138.11,138.09,0.68]
[1764048486572,2.2583282,138.1,138.09,0.68]
[1764048486955,16.308864,138.11,138.09,7.92165399]
[1764048487155,18.5671922,138.11,138.09,7.92165399]
[1764048487668,16.308864,138.12,138.1,0.18]
[1764048488257,18.5671922,138.13,138.1,0.18]
[1764048488575,18.5671922,138.13,138.1,3.38]
[1764048488877,16.308864,138.12,138.11,7.24060531]
[1764048489252,18.5671922,138.13,138.11,7.24060531]
[1764048489679,18.5671922,138.13,138.11,7.92060531]
[1764048490572,16.308864,138.14,138.12,0.68]
[1764048491286,18.5671922,138.15,138.13,7.23955693]
[1764048491785,18.5671922,138.14,138.13,7.23955693]
[1764048492283,2.2583282,138.14,138.12,7.23993135]
[1764048492580,18.5671922,138.14,138.12,7.23993135]
[1764048492767,18.5671922,138.14,138.12,7.91993135]
[1764048493169,2.2583282,138.14,138.12,7.91993135]
[1764048495480,16.978864,138.15,138.12,7.91993135]
[1764048497869,16.978864,138.15,138.11,8.20492845]
[1764048498388,2.2583282,138.12,138.1,10.4409346]
[1764048498560,0.67,138.14,138.1,3.2]
[1764048498561,2.2583282,138.11,138.1,3.2]
[1764048498760,2.2583282,138.11,138.09,7.24149126]
[1764048499072,2.9283282,138.1,138.09,7.24149126]
[1764048499674,2.9283282,138.1,138.07,0.28432314]
[1764048499871,2.2583282,138.09,138.07,3.2]
[1764048500186,2.2583282,138.1,138.07,3.2]
[1764048500371,0.67,138.1,138.07,3.2]
[1764048500570,2.2583282,138.09,138.07,3.2]
[1764048501176,2.2583282,138.09,138.07,10.44253687]
[1764048501364,2.2583282,138.09,138.07,11.12253687]
[1764048501867,16.308864,138.09,138.08,0.68]
[1764048502074,16.308864,138.09,138.08,7.92217844]
[1764048502275,18.5671922,138.09,138.08,7.24217844]
[1764048503585,16.308864,138.09,138.08,7.24217844]
[1764048504067,16.308864,138.09,138.08,7.96217844]
[1764048504389,16.308864,138.09,138.08,7.24217844]
[1764048505489,18.5671922,138.09,138.08,7.24217844]
[1764048505687,16.308864,138.09,138.08,7.24217844]
[1764048506190,16.308864,138.09,138.08,7.96217844]
[1764048506391,16.308864,138.09,138.08,7.24217844]
[1764048506878,16.308864,138.1,138.08,7.96217844]
[1764048507979,2.9683282,138.11,138.08,7.96217844]
[1764048508691,18.5671922,138.11,138.09,0.72]
[1764048508901,18.5671922,138.11,138.08,25.34762455]
[1764048509102,18.5671922,138.11,138.08,26.06762455]
[1764048509482,19.2771922,138.11,138.08,26.06762455]
[1764048511897,18.5671922,138.11,138.08,25.34762455]
[1764048512123,18.5671922,138.11,138.09,0.72]
[1764048513093,2.2583282,138.1,138.08,25.34762455]
[1764048513391,0.71,138.1,138.08,25.34762455]
[1764048513784,16.308864,138.11,138.08,25.34762455]
[1764048513988,10.43926061,138.14,138.09,1.00432314]
[1764048513989,2.2583282,138.13,138.09,1.00432314]
[1764048514183,2.2583282,138.13,138.1,3.2]
[1764048514386,18.5671922,138.13,138.1,3.92]
[1764048515189,2.9683282,138.13,138.11,7.24060531]
[1764048516096,19.2771922,138.13,138.11,7.24060531]
[1764048516281,19.2771922,138.13,138.1,10.44090716]
[1764048516282,2.2583282,138.12,138.1,10.44090716]
[1764048516478,2.2583282,138.13,138.1,11.16090716]
[1764048516683,16.308864,138.13,138.1,11.16090716]
[1764048516907,20.54836461,138.13,138.1,11.16090716]
[1764048517178,20.54836461,138.13,138.1,29.2637312]
[1764048518083,16.308864,138.13,138.11,0.72]
[1764048518279,19.83836461,138.14,138.11,1.00432314]
[1764048518684,3.52950061,138.13,138.11,0.72]
[1764048518897,3.52950061,138.13,138.11,1.00432314]
[1764048519602,3.52950061,138.13,138.12,7.24008108]
[1764048519804,17.018864,138.14,138.12,7.24008108]
[1764048520008,20.54836461,138.14,138.12,7.24008108]
[1764048520814,19.83836461,138.14,138.12,7.24008108]
[1764048520986,21.62251041,138.18,138.13,0.72]
[1764048520987,19.83836461,138.15,138.13,0.72]
[1764048521185,19.83836461,138.15,138.12,7.96008108]
[1764048521386,20.54836461,138.15,138.12,7.96008108]
[1764048522315,20.54836461,138.15,138.12,26.0602838]
[1764048522614,3.52950061,138.13,138.12,7.24008108]
[1764048523120,4.23950061,138.13,138.12,7.24008108]
[1764048523313,4.23950061,138.13,138.11,7.24052082]
[1764048523495,4.23950061,138.12,138.1,10.4410844]
[1764048523810,3.52950061,138.11,138.1,7.2410844]
[1764048524513,3.52950061,138.12,138.1,7.2410844]
[1764048524808,4.23950061,138.12,138.1,7.2410844]
[1764048531706,4.23950061,138.12,138.1,7.9610844]
[1764048531707,3.52950061,138.12,138.1,7.9610844]
[1764048532512,4.23950061,138.12,138.1,7.2410844]
[1764048532713,4.23950061,138.12,138.09,25.34489562]
[1764048532922,4.23950061,138.12,138.09,26.00489562]
[1764048533414,19.83836461,138.12,138.1,0.66]
[1764048534102,20.54836461,138.12,138.09,26.00489562]
[1764048536204,19.83836461,138.12,138.11,7.24060531]
[1764048536405,16.308864,138.12,138.11,7.24060531]
[1764048536724,16.308864,138.13,138.11,7.93060531]
[1764048536918,16.308864,138.13,138.11,26.03211859]
[1764048538927,19.83836461,138.14,138.11,26.03211859]
[1764048539226,20.48836461,138.14,138.11,26.03211859]
[1764048539525,20.48836461,138.14,138.12,3.2]
[1764048540327,16.308864,138.14,138.12,3.2]
[1764048540504,19.83836461,138.14,138.12,3.2]
[1764048541199,0.65,138.17,138.13,26.02844927]
[1764048541406,20.48836461,138.16,138.13,26.02844927]
[1764048541731,3.52950061,138.15,138.13,25.33844927]
[1764048542026,20.48836461,138.16,138.13,25.33844927]
[1764048542327,19.83836461,138.16,138.13,25.33844927]
[1764048542634,19.83836461,138.16,138.14,0.69]
[1764048542815,20.48836461,138.16,138.13,26.02844927]
[1764048543331,0.65,138.2,138.15,3.52950061]
[1764048543511,0.65,138.2,138.17,0.28432314]
[1764048543714,0.65,138.2,138.18,3.2]
[1764048544017,4.17950061,138.2,138.18,3.2]
[1764048544412,0.65,138.2,138.18,3.2]
[1764048545223,4.17950061,138.21,138.19,7.23641363]
[1764048545525,0.65,138.2,138.18,10.43679047]
[1764048546420,3.52950061,138.19,138.15,21.29605293]
[1764048546622,3.52950061,138.17,138.16,7.23783471]
[1764048547027,4.17950061,138.17,138.15,3.2]
[1764048547333,4.17950061,138.16,138.14,7.23870779]
[1764048547537,3.52950061,138.15,138.14,7.23870779]
[1764048547834,4.17950061,138.15,138.14,7.23870779]
[1764048549230,3.52950061,138.15,138.14,7.23870779]
[1764048549646,4.17950061,138.16,138.14,7.23870779]
[1764048552536,3.52950061,138.15,138.14,7.23870779]
[1764048554233,4.17950061,138.15,138.14,7.23870779]
[1764048555636,3.52950061,138.16,138.14,7.23870779]
[1764048556040,4.17950061,138.16,138.14,7.23870779]
[1764048558019,3.52950061,138.16,138.14,7.23870779]
[1764048558224,3.52950061,138.16,138.14,7.92870779]
[1764048558523,4.17950061,138.16,138.14,7.23870779]
[1764048559348,0.65,138.16,138.14,7.23870779]
[1764048559518,4.17950061,138.16,138.14,7.23870779]
[1764048561847,0.65,138.16,138.14,7.23870779]
[1764048562037,19.83836461,138.17,138.15,3.2]
[1764048562230,20.48836461,138.17,138.15,3.2]
[1764048563046,3.52950061,138.18,138.16,7.92798494]
[1764048563228,3.52950061,138.18,138.16,7.23798494]
[1764048563423,20.55836461,138.18,138.16,7.23798494]
[1764048563623,16.308864,138.18,138.16,7.23798494]
[1764048563948,16.308864,138.19,138.17,3.2]
[1764048564342,4.24950061,138.2,138.17,3.2]
[1764048564671,16.308864,138.2,138.18,0.69]
[1764048564849,0.72,138.2,138.17,3.89]
[1764048565148,17.028864,138.2,138.18,7.23693732]
[1764048565584,19.83836461,138.21,138.18,7.92693732]
[1764048565846,4.24950061,138.24,138.2,0.28432314]
[1764048566055,16.308864,138.23,138.21,3.2]
[1764048566255,3.52950061,138.24,138.21,3.2]
[1764048566424,0.72,138.23,138.21,3.2]
[1764048566859,19.83836461,138.24,138.21,3.2]
[1764048567054,3.52950061,138.24,138.22,7.234843]
[1764048567363,4.24950061,138.23,138.22,7.234843]
[1764048567854,4.24950061,138.23,138.21,10.43523795]
[1764048568030,0.72,138.22,138.21,10.43523795]
[1764048568225,4.24950061,138.23,138.21,10.43523795]
[1764048570336,3.52950061,138.24,138.21,28.52365412]
[1764048571150,4.24950061,138.24,138.21,28.52365412]
[1764048572046,4.24950061,138.23,138.21,28.52365412]
[1764048572753,0.72,138.22,138.21,10.43523795]
[1764048575548,3.52950061,138.23,138.21,10.43523795]
[1764048575849,4.24950061,138.23,138.21,10.43523795]
[1764048577845,0.72,138.23,138.21,10.43523795]
[1764048578044,3.52950061,138.25,138.21,28.76365412]
[1764048578254,4.24950061,138.25,138.21,28.76365412]
[1764048578553,2.97480157,138.25,138.21,28.52365412]
[1764048578938,16.308864,138.27,138.21,28.52365412]
[1764048578939,2.97480157,138.24,138.21,28.52365412]
[1764048579139,2.25480157,138.23,138.21,28.52365412]
[1764048579357,2.97480157,138.23,138.21,28.52365412]
[1764048579867,0.72,138.23,138.21,28.52365412]
[1764048581964,2.97480157,138.23,138.21,10.43523795]
[1764048582263,2.25480157,138.22,138.21,10.43523795]
[1764048582464,2.97480157,138.22,138.21,10.43523795]
[1764048582647,0.72,138.22,138.21,10.43523795]
[1764048583147,2.97480157,138.22,138.21,7.23523795]
[1764048583477,2.97480157,138.22,138.2,7.23565251]
[1764048583640,0.72,138.21,138.2,7.23565251]
[1764048584681,2.25480157,138.23,138.2,7.23565251]
[1764048584972,0.72,138.22,138.2,7.23565251]
[1764048586864,2.97480157,138.22,138.2,7.23565251]
[1764048587361,0.72,138.21,138.2,7.23565251]
[1764048588388,2.97480157,138.22,138.2,7.23565251]
[1764048588670,0.72,138.21,138.2,7.23565251]
[1764048588966,2.97480157,138.22,138.2,7.23565251]
[1764048589468,0.72,138.21,138.2,7.23565251]
[1764048589960,2.97480157,138.21,138.2,7.23565251]
[1764048590167,0.72,138.21,138.2,7.23565251]
[1764048593772,2.97480157,138.21,138.19,10.41621701]
[1764048594085,2.25480157,138.2,138.19,10.41621701]
[1764048594284,2.97480157,138.2,138.19,10.41621701]
[1764048598388,2.97480157,138.2,138.18,7.23679272]
[1764048598568,0.69,138.19,138.18,7.23679272]
[1764048600999,2.94480157,138.19,138.17,3.18]
[1764048601164,2.25480157,138.18,138.15,19.51277692]
[1764048601363,2.25480157,138.17,138.15,19.51277692]
[1764048601578,0.69,138.17,138.15,19.51277692]
[1764048604669,0.69,138.17,138.15,10.41850886]
[1764048604872,2.94480157,138.17,138.15,10.41850886]
[1764048605191,0.69,138.17,138.15,10.41850886]
[1764048605370,2.25480157,138.18,138.15,28.51478102]
[1764048605575,2.94480157,138.18,138.15,28.51478102]
[1764048605876,2.25480157,138.19,138.15,28.51478102]
[1764048606092,0.69,138.21,138.16,9.33426806]
[1764048606301,0.69,138.26,138.21,8.80994492]
[1764048606493,0.69,138.26,138.22,3.48432314]
[1764048606695,0.69,138.26,138.23,7.23431961]
[1764048607498,0.69,138.26,138.23,25.32011864]
[1764048607701,0.69,138.26,138.24,3.2]
[1764048607888,0.89,138.29,138.25,9.09426806]
[1764048608199,0.89,138.29,138.26,3.2]
[1764048608374,0.69,138.28,138.26,3.2]
[1764048608774,0.69,138.28,138.27,7.2322268]
[1764048610413,18.76366557,138.29,138.27,7.2322268]
[1764048610578,0.69,138.28,138.27,7.2322268]
[1764048610904,2.94480157,138.28,138.26,10.43258515]
[1764048611089,0.69,138.28,138.26,3.2]
[1764048611284,0.69,138.27,138.26,3.2]
[1764048611498,0.69,138.27,138.26,10.43272079]
[1764048611696,2.94480157,138.27,138.26,3.2]
[1764048611999,2.94480157,138.27,138.25,7.23308374]
[1764048612221,2.94480157,138.26,138.24,10.4335842]
[1764048612579,0.69,138.25,138.24,10.4335842]
[1764048614101,0.69,138.25,138.24,7.2335842]
[1764048615002,0.69,138.25,138.23,25.31962964]
[1764048618021,0.69,138.27,138.23,27.81443121]
[1764048618180,0.69,138.26,138.24,3.2]
[1764048620215,0.69,138.26,138.25,7.23327305]
[1764048621213,0.69,138.28,138.25,9.48807462]